[Event "*** Titled Tuesday Blitz"]
[Site "Chess.com"]
[Date "2021.03.02"]
[Round "4"]
[White "AlexTriapishko"]
[Black "PelinGorki"]
[Result "1/2-1/2"]
[WhiteElo "2795"]
[BlackElo "2543"]
[TimeControl "180+1"]
[EndTime "10:40:37 PST"]
[Termination "Game drawn - insufficient material"]

1. e4 {[%clk 0:03:00.9]} 1... d6 {[%clk 0:03:00.1]} 2. Nf3 {[%clk 0:03:00.4]}
2... Nf6 {[%clk 0:03:00.4]} 3. Nc3 {[%clk 0:02:59.9]} 3... c6 {[%clk 0:03:00.2]}
4. d4 {[%clk 0:02:55.3]} 4... Bg4 {[%clk 0:03:00.6]} 5. h3 {[%clk 0:02:52.1]}
5... Bh5 {[%clk 0:03:00.6]} 6. g4 {[%clk 0:02:43.8]} 6... Bg6 {[%clk 0:03:00.3]}
7. Qe2 {[%clk 0:02:44.4]} 7... e6 {[%clk 0:03:00.3]} 8. g5 {[%clk 0:02:41.8]}
8... Nfd7 {[%clk 0:02:57.9]} 9. h4 {[%clk 0:02:40.7]} 9... d5 {[%clk 0:02:56.1]}
10. h5 {[%clk 0:02:39]} 10... Bxe4 {[%clk 0:02:55.1]} 11. Nxe4 {[%clk
0:02:39.5]} 11... dxe4 {[%clk 0:02:55.6]} 12. Qxe4 {[%clk 0:02:40.4]} 12... Qa5+
{[%clk 0:02:48.9]} 13. Bd2 {[%clk 0:02:37.1]} 13... Qd5 {[%clk 0:02:49.4]} 14.
Qe3 {[%clk 0:02:20.9]} 14... c5 {[%clk 0:02:35.2]} 15. c4 {[%clk 0:02:17.2]}
15... cxd4 {[%clk 0:02:33.7]} 16. cxd5 {[%clk 0:02:13.6]} 16... dxe3 {[%clk
0:02:33.7]} 17. Bxe3 {[%clk 0:02:14.5]} 17... exd5 {[%clk 0:02:33.4]} 18. O-O-O
{[%clk 0:02:14.4]} 18... Nc6 {[%clk 0:02:23.5]} 19. Rxd5 {[%clk 0:02:12.1]}
19... Nb4 {[%clk 0:01:53.5]} 20. Rb5 {[%clk 0:01:20.8]} 20... O-O-O {[%clk
0:01:19.9]} 21. Bxa7 {[%clk 0:00:57]} 21... Nxa2+ {[%clk 0:01:01.3]} 22. Kb1
{[%clk 0:00:56.7]} 22... Nb4 {[%clk 0:01:02.2]} 23. Bh3 {[%clk 0:00:56.2]} 23...
Nc6 {[%clk 0:00:50.4]} 24. Rc1 {[%clk 0:00:49.9]} 24... Kc7 {[%clk 0:00:25.5]}
25. Bd4 {[%clk 0:00:32.7]} 25... Rg8 {[%clk 0:00:21.6]} 26. Rf5 {[%clk
0:00:16.9]} 26... Bd6 {[%clk 0:00:20]} 27. Rxf7 {[%clk 0:00:16]} 27... Rgf8
{[%clk 0:00:20.5]} 28. g6 {[%clk 0:00:11.9]} 28... hxg6 {[%clk 0:00:18.3]} 29.
hxg6 {[%clk 0:00:12.8]} 29... Rxf7 {[%clk 0:00:18.5]} 30. gxf7 {[%clk
0:00:13.7]} 30... Rf8 {[%clk 0:00:17.3]} 31. Ng5 {[%clk 0:00:13.9]} 31... Rh8
{[%clk 0:00:09]} 32. Bxg7 {[%clk 0:00:11.2]} 32... Rh5 {[%clk 0:00:08.3]} 33.
Ne6+ {[%clk 0:00:08.4]} 33... Kb6 {[%clk 0:00:04.8]} 34. Bg4 {[%clk 0:00:09.3]}
34... Rb5 {[%clk 0:00:03]} 35. Be2 {[%clk 0:00:06.1]} 35... Rb4 {[%clk
0:00:01.5]} 36. Rc4 {[%clk 0:00:05.1]} 36... Rxc4 {[%clk 0:00:01.4]} 37. Bxc4
{[%clk 0:00:06]} 37... Nce5 {[%clk 0:00:02]} 38. Bxe5 {[%clk 0:00:04.9]} 38...
Nxe5 {[%clk 0:00:02.9]} 39. f8=Q {[%clk 0:00:03.6]} 39... Bxf8 {[%clk
0:00:03.2]} 40. Nxf8 {[%clk 0:00:04.5]} 40... Nxc4 {[%clk 0:00:03.8]} 41. Kc2
{[%clk 0:00:04.5]} 41... Kc5 {[%clk 0:00:03.6]} 42. Ne6+ {[%clk 0:00:04.3]}
42... Kd5 {[%clk 0:00:03.4]} 43. Nf4+ {[%clk 0:00:04.4]} 43... Ke4 {[%clk
0:00:03.8]} 44. Nd3 {[%clk 0:00:04.9]} 44... Kf3 {[%clk 0:00:03.1]} 45. Kc3
{[%clk 0:00:05.4]} 45... Nd6 {[%clk 0:00:03.4]} 46. Kd4 {[%clk 0:00:05.8]} 46...
Nc8 {[%clk 0:00:01.7]} 47. b4 {[%clk 0:00:05.1]} 47... Ne7 {[%clk 0:00:01.7]}
48. b5 {[%clk 0:00:04.9]} 48... Nc8 {[%clk 0:00:01.5]} 49. Kc5 {[%clk
0:00:05.3]} 49... Ke4 {[%clk 0:00:02]} 50. Ne1 {[%clk 0:00:03.2]} 50... Kf4
{[%clk 0:00:01.7]} 51. Nc2 {[%clk 0:00:02.6]} 51... Kf3 {[%clk 0:00:02.1]} 52.
Nb4 {[%clk 0:00:02.5]} 52... b6+ {[%clk 0:00:02.6]} 53. Kc6 {[%clk 0:00:01.5]}
53... Kxf2 {[%clk 0:00:01.6]} 54. Kc7 {[%clk 0:00:01.1]} 54... Na7 {[%clk
0:00:01.5]} 55. Kxb6 {[%clk 0:00:02]} 55... Nxb5 {[%clk 0:00:02.4]} 1/2-1/2

[Event "*** Titled Tuesday Blitz"]
[Site "Chess.com"]
[Date "2021.03.02"]
[Round "4"]
[White "Bodnar_Mykola"]
[Black "juancruzarias"]
[Result "1-0"]
[WhiteElo "2493"]
[BlackElo "2628"]
[TimeControl "180+1"]
[EndTime "10:40:37 PST"]
[Termination "Bodnar_Mykola won by resignation"]

1. d4 {[%clk 0:03:00.9]} 1... Nf6 {[%clk 0:02:58.8]} 2. c4 {[%clk 0:03:01.2]}
2... c5 {[%clk 0:02:54.6]} 3. d5 {[%clk 0:03:01]} 3... e5 {[%clk 0:02:54.4]} 4.
Nc3 {[%clk 0:02:57.5]} 4... d6 {[%clk 0:02:54]} 5. Nf3 {[%clk 0:02:55.6]} 5...
Nbd7 {[%clk 0:02:51.3]} 6. e4 {[%clk 0:02:54.4]} 6... Be7 {[%clk 0:02:51.5]} 7.
Bd3 {[%clk 0:02:54.1]} 7... Nf8 {[%clk 0:02:50.6]} 8. O-O {[%clk 0:02:46.7]}
8... Ng6 {[%clk 0:02:50.4]} 9. h3 {[%clk 0:02:43.2]} 9... h5 {[%clk 0:02:50.5]}
10. Bg5 {[%clk 0:02:42.4]} 10... Nh7 {[%clk 0:02:46.9]} 11. Be3 {[%clk
0:02:36.6]} 11... Ng5 {[%clk 0:02:43.7]} 12. Nxg5 {[%clk 0:02:27.1]} 12... Bxg5
{[%clk 0:02:43.5]} 13. Qf3 {[%clk 0:02:23.5]} 13... Bf4 {[%clk 0:02:22.8]} 14.
Bxf4 {[%clk 0:02:15.5]} 14... Nxf4 {[%clk 0:02:19.2]} 15. Ne2 {[%clk 0:02:15.7]}
15... Nxe2+ {[%clk 0:02:10.9]} 16. Bxe2 {[%clk 0:02:07.6]} 16... Qg5 {[%clk
0:02:04.4]} 17. Qe3 {[%clk 0:02:06.4]} 17... Qxe3 {[%clk 0:01:51.8]} 18. fxe3
{[%clk 0:02:07.3]} 18... Ke7 {[%clk 0:01:43.4]} 19. b4 {[%clk 0:01:55.2]} 19...
cxb4 {[%clk 0:01:36.9]} 20. a3 {[%clk 0:01:54.8]} 20... bxa3 {[%clk 0:01:36.2]}
21. Rxa3 {[%clk 0:01:55.7]} 21... Bd7 {[%clk 0:01:33.6]} 22. Rb1 {[%clk
0:01:54.7]} 22... b6 {[%clk 0:01:23.9]} 23. Rba1 {[%clk 0:01:52.9]} 23... a5
{[%clk 0:01:20]} 24. Rb1 {[%clk 0:01:52.8]} 24... Rhb8 {[%clk 0:01:04.5]} 25.
Bxh5 {[%clk 0:01:52]} 25... b5 {[%clk 0:01:02.8]} 26. cxb5 {[%clk 0:01:50.2]}
26... Rxb5 {[%clk 0:01:00.5]} 27. Rc1 {[%clk 0:01:41.2]} 27... Rc5 {[%clk
0:00:57.4]} 28. Rb1 {[%clk 0:01:39.7]} 28... Rb5 {[%clk 0:00:53.2]} 29. Rc1
{[%clk 0:01:40.1]} 29... Rc8 {[%clk 0:00:53.5]} 30. Rxc8 {[%clk 0:01:33.8]}
30... Bxc8 {[%clk 0:00:54.4]} 31. Be2 {[%clk 0:01:33.6]} 31... Rc5 {[%clk
0:00:51.9]} 32. Kf2 {[%clk 0:01:34]} 32... Bd7 {[%clk 0:00:51.3]} 33. Ke1 {[%clk
0:01:34]} 33... a4 {[%clk 0:00:47.6]} 34. Kd2 {[%clk 0:01:32.1]} 34... Rc8
{[%clk 0:00:46.1]} 35. Rc3 {[%clk 0:01:23.2]} 35... Rb8 {[%clk 0:00:42.7]} 36.
Kc2 {[%clk 0:01:18.3]} 36... Kd8 {[%clk 0:00:40.5]} 37. h4 {[%clk 0:01:11.1]}
37... f6 {[%clk 0:00:36.9]} 38. Kc1 {[%clk 0:00:53.7]} 38... Rb4 {[%clk
0:00:37]} 39. Bd3 {[%clk 0:00:53.8]} 39... Rb8 {[%clk 0:00:35.8]} 40. Bc2 {[%clk
0:00:51.6]} 40... Ra8 {[%clk 0:00:35.4]} 41. Kb2 {[%clk 0:00:50.2]} 41... Rb8+
{[%clk 0:00:33]} 42. Ka3 {[%clk 0:00:50.4]} 42... g6 {[%clk 0:00:31.8]} 43. Rc4
{[%clk 0:00:47]} 43... Ra8 {[%clk 0:00:20]} 44. Bxa4 {[%clk 0:00:45.8]} 44...
Bxa4 {[%clk 0:00:20.9]} 45. Rxa4 {[%clk 0:00:46.7]} 45... Rc8 {[%clk 0:00:21.5]}
46. Kb2 {[%clk 0:00:45.2]} 46... Kc7 {[%clk 0:00:18.4]} 47. Ra7+ {[%clk
0:00:43.5]} 47... Kb6 {[%clk 0:00:18.6]} 48. Rf7 {[%clk 0:00:44.1]} 48... Kc5
{[%clk 0:00:17.7]} 49. Rxf6 {[%clk 0:00:43.9]} 49... Rh8 {[%clk 0:00:18.3]} 50.
g3 {[%clk 0:00:43.3]} 50... g5 {[%clk 0:00:18.5]} 51. hxg5 {[%clk 0:00:43.1]}
51... Rh2+ {[%clk 0:00:18.9]} 52. Kc3 {[%clk 0:00:42.7]} 52... Rg2 {[%clk
0:00:19.3]} 53. Rf3 {[%clk 0:00:42.4]} 53... Rh2 {[%clk 0:00:19.6]} 54. g6
{[%clk 0:00:42.5]} 54... Rh5 {[%clk 0:00:18.8]} 55. Rf5 {[%clk 0:00:40.3]} 55...
Rh6 {[%clk 0:00:19.1]} 56. Rg5 {[%clk 0:00:40.5]} 56... Rh8 {[%clk 0:00:19]} 57.
g7 {[%clk 0:00:41.1]} 57... Rg8 {[%clk 0:00:19.4]} 58. Rg6 {[%clk 0:00:41.6]}
58... Kb5 {[%clk 0:00:13.7]} 59. Kd3 {[%clk 0:00:41.5]} 59... Kc5 {[%clk
0:00:14.1]} 60. Ke2 {[%clk 0:00:42.4]} 60... Kc4 {[%clk 0:00:14.1]} 61. Kf3
{[%clk 0:00:42.9]} 61... Kd3 {[%clk 0:00:15]} 62. Kg4 {[%clk 0:00:39.2]} 62...
Kxe4 {[%clk 0:00:15.9]} 63. Kg5 {[%clk 0:00:39.5]} 63... Kxd5 {[%clk 0:00:10.7]}
64. Kf6 {[%clk 0:00:39.7]} 64... Ke4 {[%clk 0:00:09.1]} 65. Kf7 {[%clk 0:00:40]}
65... Rb8 {[%clk 0:00:08]} 66. Rxd6 {[%clk 0:00:39.3]} 66... Kf3 {[%clk
0:00:06.3]} 67. g8=Q {[%clk 0:00:39.4]} 67... Rxg8 {[%clk 0:00:05.6]} 68. Kxg8
{[%clk 0:00:40.3]} 68... e4 {[%clk 0:00:05.1]} 69. Re6 {[%clk 0:00:40.3]} 69...
Kxe3 {[%clk 0:00:05.6]} 70. g4 {[%clk 0:00:40.7]} 70... Kf4 {[%clk 0:00:06]} 71.
g5 {[%clk 0:00:41.1]} 71... Kf5 {[%clk 0:00:06.6]} 72. Re8 {[%clk 0:00:41.6]}
72... Kxg5 {[%clk 0:00:06.7]} 73. Rxe4 {[%clk 0:00:41.6]} 1-0

[Event "*** Titled Tuesday Blitz"]
[Site "Chess.com"]
[Date "2021.03.02"]
[Round "4"]
[White "AlexPapasimakopoulos"]
[Black "Pogosian_Manvel"]
[Result "1/2-1/2"]
[WhiteElo "2599"]
[BlackElo "2429"]
[TimeControl "180+1"]
[EndTime "10:40:40 PST"]
[Termination "Game drawn by stalemate"]

1. d4 {[%clk 0:03:00.9]} 1... Nf6 {[%clk 0:02:56.9]} 2. c4 {[%clk 0:03:00.6]}
2... e6 {[%clk 0:02:57.1]} 3. Nc3 {[%clk 0:03:00.6]} 3... d5 {[%clk 0:02:56.9]}
4. cxd5 {[%clk 0:03:00.7]} 4... exd5 {[%clk 0:02:57]} 5. Bg5 {[%clk 0:03:01]}
5... Be7 {[%clk 0:02:56.9]} 6. e3 {[%clk 0:03:01.5]} 6... O-O {[%clk 0:02:56.9]}
7. Bd3 {[%clk 0:03:02]} 7... c6 {[%clk 0:02:56.9]} 8. Qc2 {[%clk 0:03:01.9]}
8... Nbd7 {[%clk 0:02:57.5]} 9. Nf3 {[%clk 0:03:02]} 9... Re8 {[%clk 0:02:58]}
10. O-O {[%clk 0:03:02.2]} 10... Nf8 {[%clk 0:02:58.2]} 11. h3 {[%clk
0:03:00.9]} 11... Ng6 {[%clk 0:02:47.4]} 12. Bxf6 {[%clk 0:02:58.2]} 12... Bxf6
{[%clk 0:02:47.2]} 13. b4 {[%clk 0:02:58.9]} 13... a6 {[%clk 0:02:37.2]} 14. a4
{[%clk 0:02:56.5]} 14... Qd6 {[%clk 0:02:33.1]} 15. b5 {[%clk 0:02:51.7]} 15...
axb5 {[%clk 0:02:28.9]} 16. axb5 {[%clk 0:02:52.6]} 16... Bd7 {[%clk 0:02:24.2]}
17. bxc6 {[%clk 0:02:51.9]} 17... bxc6 {[%clk 0:02:23.8]} 18. Na4 {[%clk
0:02:44.8]} 18... Nf8 {[%clk 0:02:00.9]} 19. Rac1 {[%clk 0:02:40.8]} 19... g6
{[%clk 0:01:56.8]} 20. Nb6 {[%clk 0:02:40.7]} 20... Ra3 {[%clk 0:01:52.1]} 21.
Rfd1 {[%clk 0:02:29]} 21... Re6 {[%clk 0:01:41.4]} 22. e4 {[%clk 0:02:05.4]}
22... Rxd3 {[%clk 0:01:17.6]} 23. e5 {[%clk 0:01:37.8]} 23... Rxd1+ {[%clk
0:01:15]} 24. Qxd1 {[%clk 0:01:38.7]} 24... Qb8 {[%clk 0:00:50.4]} 25. Nxd7
{[%clk 0:01:34.1]} 25... Nxd7 {[%clk 0:00:49.6]} 26. exf6 {[%clk 0:01:34.7]}
26... Rxf6 {[%clk 0:00:46.7]} 27. Qd2 {[%clk 0:01:32.3]} 27... Re6 {[%clk
0:00:45.7]} 28. Qh6 {[%clk 0:01:29.4]} 28... Qf8 {[%clk 0:00:43.3]} 29. Qxf8+
{[%clk 0:01:25.4]} 29... Nxf8 {[%clk 0:00:32.4]} 30. Ne5 {[%clk 0:01:25.3]}
30... f6 {[%clk 0:00:25.9]} 31. Nxc6 {[%clk 0:01:25.3]} 31... Nd7 {[%clk
0:00:21.6]} 32. Nb4 {[%clk 0:01:24.3]} 32... Re4 {[%clk 0:00:16.9]} 33. Rc8+
{[%clk 0:00:52.8]} 33... Kf7 {[%clk 0:00:15.5]} 34. Rc7 {[%clk 0:00:53.2]} 34...
Ke6 {[%clk 0:00:15.3]} 35. Rc6+ {[%clk 0:00:53.4]} 35... Kf7 {[%clk 0:00:13.5]}
36. Rd6 {[%clk 0:00:53.7]} 36... Ke7 {[%clk 0:00:10.7]} 37. Rxd5 {[%clk
0:00:52.1]} 37... Ke6 {[%clk 0:00:07.3]} 38. f3 {[%clk 0:00:52]} 38... Re1+
{[%clk 0:00:06.4]} 39. Kf2 {[%clk 0:00:51.8]} 39... Rb1 {[%clk 0:00:07]} 40. Rb5
{[%clk 0:00:51.6]} 40... Rb2+ {[%clk 0:00:06.5]} 41. Kg3 {[%clk 0:00:50.8]}
41... h5 {[%clk 0:00:06.4]} 42. h4 {[%clk 0:00:50.2]} 42... g5 {[%clk
0:00:03.3]} 43. hxg5 {[%clk 0:00:49.8]} 43... fxg5 {[%clk 0:00:03.8]} 44. d5+
{[%clk 0:00:38.8]} 44... Kf5 {[%clk 0:00:03]} 45. d6+ {[%clk 0:00:38.6]} 45...
Ke6 {[%clk 0:00:03]} 46. Rxg5 {[%clk 0:00:18.1]} 46... Rxb4 {[%clk 0:00:02.6]}
47. Rxh5 {[%clk 0:00:18.8]} 47... Kxd6 {[%clk 0:00:03.2]} 48. Rh4 {[%clk
0:00:19.4]} 48... Rxh4 {[%clk 0:00:02.8]} 49. Kxh4 {[%clk 0:00:20.3]} 49... Ke5
{[%clk 0:00:03.3]} 50. Kg5 {[%clk 0:00:20.6]} 50... Nf6 {[%clk 0:00:03.1]} 51.
f4+ {[%clk 0:00:21.1]} 51... Ke6 {[%clk 0:00:03]} 52. Kg6 {[%clk 0:00:21.7]}
52... Ne4 {[%clk 0:00:02.7]} 53. g4 {[%clk 0:00:21.5]} 53... Ke7 {[%clk
0:00:02.4]} 54. Kg7 {[%clk 0:00:21.9]} 54... Ke8 {[%clk 0:00:01.2]} 55. f5
{[%clk 0:00:21.6]} 55... Ng5 {[%clk 0:00:01.2]} 56. f6 {[%clk 0:00:20.5]} 56...
Nf7 {[%clk 0:00:01]} 57. Kg6 {[%clk 0:00:20.6]} 57... Kf8 {[%clk 0:00:01.4]} 58.
g5 {[%clk 0:00:20.7]} 58... Nxg5 {[%clk 0:00:01.8]} 59. Kxg5 {[%clk 0:00:21.6]}
59... Kf7 {[%clk 0:00:02.3]} 60. Kf5 {[%clk 0:00:22.2]} 60... Kf8 {[%clk
0:00:02.3]} 61. Kf4 {[%clk 0:00:23.1]} 61... Kf7 {[%clk 0:00:02.5]} 62. Ke5
{[%clk 0:00:24]} 62... Kf8 {[%clk 0:00:02.3]} 63. Ke6 {[%clk 0:00:24.9]} 63...
Ke8 {[%clk 0:00:02.6]} 64. Kf5 {[%clk 0:00:25.8]} 64... Kf7 {[%clk 0:00:02.7]}
65. Kg5 {[%clk 0:00:26.7]} 65... Kf8 {[%clk 0:00:02.7]} 66. Kg6 {[%clk
0:00:27.6]} 66... Kg8 {[%clk 0:00:02.9]} 67. f7+ {[%clk 0:00:28.5]} 67... Kf8
{[%clk 0:00:03.4]} 68. Kf6 {[%clk 0:00:29.4]} 1/2-1/2

[Event "*** Titled Tuesday Blitz"]
[Site "Chess.com"]
[Date "2021.03.02"]
[Round "4"]
[White "GameOverBro"]
[Black "Kobalia"]
[Result "0-1"]
[WhiteElo "2500"]
[BlackElo "2689"]
[TimeControl "180+1"]
[EndTime "10:40:42 PST"]
[Termination "Kobalia won on time"]

1. e4 {[%clk 0:03:00.9]} 1... c6 {[%clk 0:02:57.7]} 2. Nc3 {[%clk 0:03:00.6]}
2... d5 {[%clk 0:02:57.7]} 3. Nf3 {[%clk 0:03:01.3]} 3... g6 {[%clk 0:02:57.2]}
4. d4 {[%clk 0:02:55.9]} 4... Bg4 {[%clk 0:02:56.3]} 5. Be2 {[%clk 0:02:43.5]}
5... e6 {[%clk 0:02:52]} 6. O-O {[%clk 0:02:33.2]} 6... Nd7 {[%clk 0:02:49.1]}
7. h3 {[%clk 0:02:29]} 7... Bxf3 {[%clk 0:02:48.6]} 8. Bxf3 {[%clk 0:02:29.9]}
8... Bg7 {[%clk 0:02:46.7]} 9. Re1 {[%clk 0:02:22.5]} 9... Ne7 {[%clk
0:02:44.9]} 10. a4 {[%clk 0:02:16.7]} 10... O-O {[%clk 0:02:43.8]} 11. b3 {[%clk
0:02:09.9]} 11... Re8 {[%clk 0:02:40.6]} 12. Ba3 {[%clk 0:02:08.9]} 12... a5
{[%clk 0:02:38.6]} 13. Qd2 {[%clk 0:02:06.2]} 13... Nf6 {[%clk 0:02:37.9]} 14.
Rad1 {[%clk 0:02:04.1]} 14... Qc7 {[%clk 0:02:23.8]} 15. g3 {[%clk 0:02:01.1]}
15... Rad8 {[%clk 0:02:22]} 16. Qe2 {[%clk 0:01:37.3]} 16... dxe4 {[%clk
0:02:18.6]} 17. Nxe4 {[%clk 0:01:35.2]} 17... Nxe4 {[%clk 0:02:18.1]} 18. Qxe4
{[%clk 0:01:35.7]} 18... Nf5 {[%clk 0:02:14.3]} 19. c3 {[%clk 0:01:32.2]} 19...
Ne7 {[%clk 0:02:09.5]} 20. h4 {[%clk 0:01:23.5]} 20... h5 {[%clk 0:02:08.4]} 21.
c4 {[%clk 0:01:08.6]} 21... Bf6 {[%clk 0:01:43.9]} 22. Kg2 {[%clk 0:00:42.2]}
22... Kg7 {[%clk 0:01:43.2]} 23. Rd3 {[%clk 0:00:37.6]} 23... Nf5 {[%clk
0:01:40.6]} 24. Red1 {[%clk 0:00:37.3]} 24... Qb6 {[%clk 0:01:37.3]} 25. Bc5
{[%clk 0:00:36.8]} 25... Qc7 {[%clk 0:01:36.9]} 26. Ba3 {[%clk 0:00:36.6]} 26...
Re7 {[%clk 0:01:35.5]} 27. Bxe7 {[%clk 0:00:36.3]} 27... Nxe7 {[%clk 0:01:24]}
28. R1d2 {[%clk 0:00:34.8]} 28... Nf5 {[%clk 0:01:21.6]} 29. d5 {[%clk
0:00:33.3]} 29... cxd5 {[%clk 0:01:17.6]} 30. cxd5 {[%clk 0:00:34.2]} 30... Nd6
{[%clk 0:01:17.4]} 31. Qe2 {[%clk 0:00:24.1]} 31... e5 {[%clk 0:01:17.1]} 32.
Rc2 {[%clk 0:00:23.7]} 32... Qe7 {[%clk 0:01:16.7]} 33. Be4 {[%clk 0:00:20.3]}
33... Kg8 {[%clk 0:01:12.6]} 34. Rdc3 {[%clk 0:00:20.6]} 34... Rd7 {[%clk
0:01:11.4]} 35. Qd3 {[%clk 0:00:19.9]} 35... Bg7 {[%clk 0:01:10.3]} 36. Kg1
{[%clk 0:00:20.3]} 36... f5 {[%clk 0:01:09.6]} 37. Bg2 {[%clk 0:00:20.9]} 37...
e4 {[%clk 0:01:09.8]} 38. Rc8+ {[%clk 0:00:18.5]} 38... Kh7 {[%clk 0:01:03.4]}
39. Qe2 {[%clk 0:00:16.5]} 39... Nxc8 {[%clk 0:01:02.4]} 40. Rxc8 {[%clk
0:00:17.4]} 40... Rxd5 {[%clk 0:01:01.9]} 41. Bf1 {[%clk 0:00:16.3]} 41... Qd6
{[%clk 0:00:58.9]} 42. Qc4 {[%clk 0:00:13.4]} 42... Rd1 {[%clk 0:00:41.8]} 43.
Kg2 {[%clk 0:00:12.8]} 43... Rd2 {[%clk 0:00:39.8]} 44. Be2 {[%clk 0:00:07.5]}
44... Kh6 {[%clk 0:00:33.4]} 45. Rc7 {[%clk 0:00:06.1]} 45... Rxe2 {[%clk
0:00:23.1]} 46. Rxg7 {[%clk 0:00:05.8]} 46... Rxf2+ {[%clk 0:00:20.9]} 47. Kxf2
{[%clk 0:00:06.7]} 47... Kxg7 {[%clk 0:00:20.5]} 48. Qc3+ {[%clk 0:00:07.1]}
48... Kh7 {[%clk 0:00:19.5]} 49. Qxa5 {[%clk 0:00:08]} 49... Qd4+ {[%clk
0:00:17.1]} 50. Kg2 {[%clk 0:00:06.4]} 50... Qd7 {[%clk 0:00:14]} 51. Qe5 {[%clk
0:00:05.9]} 51... Qc6 {[%clk 0:00:10.5]} 52. Kh2 {[%clk 0:00:03.5]} 52... Kg8
{[%clk 0:00:08.6]} 53. Qe7 {[%clk 0:00:03]} 53... Qc2+ {[%clk 0:00:07]} 54. Kh3
{[%clk 0:00:02.7]} 54... Qxb3 {[%clk 0:00:06.9]} 55. Qd8+ {[%clk 0:00:02.4]}
55... Kg7 {[%clk 0:00:06.6]} 56. Qe7+ {[%clk 0:00:02.8]} 56... Qf7 {[%clk
0:00:06.3]} 57. Qe5+ {[%clk 0:00:03.4]} 57... Kh7 {[%clk 0:00:05.8]} 58. a5
{[%clk 0:00:04]} 58... Qd7 {[%clk 0:00:05.4]} 59. Qc5 {[%clk 0:00:03.1]} 59...
f4+ {[%clk 0:00:04.1]} 60. Kh2 {[%clk 0:00:02.8]} 60... f3 {[%clk 0:00:03.3]}
0-1

[Event "*** Titled Tuesday Blitz"]
[Site "Chess.com"]
[Date "2021.03.02"]
[Round "4"]
[White "Albertu"]
[Black "saikrishnaReturns"]
[Result "0-1"]
[WhiteElo "2345"]
[BlackElo "2644"]
[TimeControl "180+1"]
[EndTime "10:40:46 PST"]
[Termination "saikrishnaReturns won by resignation"]

1. e4 {[%clk 0:02:57.3]} 1... e5 {[%clk 0:03:00.1]} 2. Nf3 {[%clk 0:02:53.4]}
2... Nc6 {[%clk 0:03:00.3]} 3. Bb5 {[%clk 0:02:53.3]} 3... a6 {[%clk 0:03:00.2]}
4. Ba4 {[%clk 0:02:52.3]} 4... d6 {[%clk 0:03:01.1]} 5. O-O {[%clk 0:02:46.8]}
5... Nf6 {[%clk 0:03:00.6]} 6. d3 {[%clk 0:02:45.9]} 6... g6 {[%clk 0:02:59.7]}
7. c3 {[%clk 0:02:43.8]} 7... Bg7 {[%clk 0:02:59.8]} 8. Re1 {[%clk 0:02:43.7]}
8... O-O {[%clk 0:02:59.8]} 9. Nbd2 {[%clk 0:02:42.6]} 9... b5 {[%clk
0:02:47.1]} 10. Bb3 {[%clk 0:02:30.9]} 10... Na5 {[%clk 0:02:46.9]} 11. Bc2
{[%clk 0:02:31.4]} 11... c5 {[%clk 0:02:46.7]} 12. Nf1 {[%clk 0:02:30.6]} 12...
Nc6 {[%clk 0:02:43.8]} 13. Bg5 {[%clk 0:02:26.2]} 13... h6 {[%clk 0:02:43.1]}
14. Bh4 {[%clk 0:02:25.8]} 14... g5 {[%clk 0:02:43]} 15. Bg3 {[%clk 0:02:25.5]}
15... Re8 {[%clk 0:02:41.2]} 16. Ne3 {[%clk 0:02:23.9]} 16... Bf8 {[%clk
0:02:27.2]} 17. h4 {[%clk 0:02:23.3]} 17... g4 {[%clk 0:02:26.3]} 18. Nh2 {[%clk
0:02:23.8]} 18... h5 {[%clk 0:02:24.9]} 19. f3 {[%clk 0:02:24.4]} 19... gxf3
{[%clk 0:02:22.9]} 20. Nxf3 {[%clk 0:02:25]} 20... Ng4 {[%clk 0:02:23]} 21. Ng5
{[%clk 0:02:16.3]} 21... Be7 {[%clk 0:02:14.7]} 22. Nxg4 {[%clk 0:02:12.7]}
22... Bxg4 {[%clk 0:02:15.6]} 23. Qd2 {[%clk 0:02:12.3]} 23... Bxg5 {[%clk
0:02:12.5]} 24. hxg5 {[%clk 0:02:12.1]} 24... Ne7 {[%clk 0:02:10.1]} 25. g6
{[%clk 0:01:51.7]} 25... Nxg6 {[%clk 0:02:08]} 26. Qh6 {[%clk 0:01:51.2]} 26...
h4 {[%clk 0:01:58.4]} 27. Bh2 {[%clk 0:01:38.1]} 27... Qf6 {[%clk 0:01:55]} 28.
Rf1 {[%clk 0:01:34.5]} 28... Qg7 {[%clk 0:01:55.1]} 29. Qg5 {[%clk 0:01:25.7]}
29... Be6 {[%clk 0:01:50.1]} 30. Rf3 {[%clk 0:00:56.4]} 30... Kh7 {[%clk
0:01:31.8]} 31. Raf1 {[%clk 0:00:54.8]} 31... Ra7 {[%clk 0:01:29.8]} 32. d4
{[%clk 0:00:35.6]} 32... cxd4 {[%clk 0:00:56.5]} 33. cxd4 {[%clk 0:00:33.2]}
33... Bc4 {[%clk 0:00:56.6]} 34. R1f2 {[%clk 0:00:28.6]} 34... exd4 {[%clk
0:00:56.2]} 35. b3 {[%clk 0:00:12.9]} 35... d3 {[%clk 0:00:54.6]} 36. Bb1 {[%clk
0:00:12.6]} 36... Be6 {[%clk 0:00:21.3]} 37. Bxd3 {[%clk 0:00:13.1]} 37... Rc8
{[%clk 0:00:19.5]} 38. e5 {[%clk 0:00:10.8]} 38... dxe5 {[%clk 0:00:17.9]} 39.
Bxe5 {[%clk 0:00:10.1]} 39... Qh6 {[%clk 0:00:18.3]} 40. Qf6 {[%clk 0:00:05.3]}
40... Rc1+ {[%clk 0:00:17.7]} 41. Rf1 {[%clk 0:00:05.9]} 41... Rxf1+ {[%clk
0:00:17.4]} 42. Bxf1 {[%clk 0:00:06.5]} 42... h3 {[%clk 0:00:17.2]} 43. gxh3
{[%clk 0:00:05.9]} 43... Rd7 {[%clk 0:00:17.2]} 44. Rg3 {[%clk 0:00:05.5]} 44...
Nxe5 {[%clk 0:00:16]} 45. Qxe5 {[%clk 0:00:04.6]} 45... Rd1 {[%clk 0:00:14.8]}
46. Kf2 {[%clk 0:00:03.1]} 46... Qd2+ {[%clk 0:00:13.5]} 47. Be2 {[%clk
0:00:03.2]} 47... Qe1+ {[%clk 0:00:11.7]} 48. Ke3 {[%clk 0:00:01.1]} 48... Qd2+
{[%clk 0:00:07.6]} 49. Kf2 {[%clk 0:00:01.5]} 49... Qd4+ {[%clk 0:00:06.4]} 50.
Qxd4 {[%clk 0:00:01.6]} 50... Rxd4 {[%clk 0:00:07.3]} 51. Ke3 {[%clk 0:00:02]}
51... Rh4 {[%clk 0:00:06.4]} 52. Kf3 {[%clk 0:00:01.8]} 52... Rxh3 {[%clk
0:00:06.4]} 53. Rxh3+ {[%clk 0:00:02.2]} 53... Bxh3 {[%clk 0:00:07.3]} 54. Kf4
{[%clk 0:00:03.1]} 54... Kg6 {[%clk 0:00:06.5]} 55. Ke4 {[%clk 0:00:03.4]} 55...
Kf6 {[%clk 0:00:06.6]} 56. Kd5 {[%clk 0:00:03.6]} 56... Bg2+ {[%clk 0:00:07]}
57. Kc5 {[%clk 0:00:03.9]} 57... Ke5 {[%clk 0:00:07.2]} 58. Kb6 {[%clk
0:00:04.3]} 58... Kd4 {[%clk 0:00:07.2]} 59. Kxa6 {[%clk 0:00:04.6]} 59... b4
{[%clk 0:00:07.6]} 60. Kb5 {[%clk 0:00:04.1]} 60... Kc3 {[%clk 0:00:07.9]} 61.
Kc5 {[%clk 0:00:02.8]} 61... f5 {[%clk 0:00:07.6]} 62. a4 {[%clk 0:00:01.3]}
62... bxa3 {[%clk 0:00:07.4]} 63. Bc4 {[%clk 0:00:01.6]} 63... a2 {[%clk
0:00:07.7]} 0-1